[Event "DFMM-LV 2023"]
[Site "Braunfels"]
[Date "2023.06.09"]
[Round "1.20"]
[White "Lukas, Anne"]
[Black "Wellenreich, Jenni"]
[Result "1-0"]
[Annotator "TA"]
[ECO "A09"]
[WhiteElo "2057"]
[BlackElo "1828"]
[PlyCount "130"]
[EventDate "2023.06.09"]
[EventType "team-tourn"]
[EventCountry "GER"]
[SourceTitle "playchess.com"]
[Source "ChessBase"]
[SourceQuality "1"]
[TimeControl "40/5400+30:1800+30"]

{[%evp 9,130,-7,3,-16,-11,-1,0,-24,0,-38,-18,-40,-53,-37,-39,-54,-25,-18,25,0,-6,-7,0,0,17,-27,-27,-75,-68,-70,-79,-81,-64,-78,-61,-83,-70,-81,-59,-72,-41,-44,-39,-60,0,0,0,0,0,-9,0,0,-8,-7,-5,-33,-32,-38,-38,-38,-33,-31,-29,-29,-29,-29,-29,-31,-36,-61,0,-35,-35,-105,-45,-45,-35,-35,-26,-70,0,-35,12,12,12,0,0,0,0,0,344,256,421,403,494,487,489,481,461,452,425,341,333,333,303,246,246,232,240,205,457,456,438,441,439,418,845,809,29976,29977,29976,29978,29983]} 1. Nf3 {[%emt 0:00:02]} d5 {[%emt 0:01:05]} 2. g3 {[%emt 0:00:05]} c5 {[%emt 0:00:17]} 3. c4 {[%emt 0:00:21]} d4 {[%emt 0:01:07]} 4. b4 {[%emt 0:00:06]} cxb4 {[%emt 0:02:21]} 5. a3 {[%emt 0:00:06]} e6 {[%emt 0:01:19]} 6. d3 {[%emt 0:02:00] A09: Réti Opening: 1 Nf3 d5 2 c4.} Nc6 {[%emt 0:01:07]} 7. Bg2 {[%emt 0:00:06]} Nf6 {[%emt 0:01:02]} 8. O-O {[%emt 0:00:08] The position is equal.} Be7 {[%emt 0:01:36]} 9. Nbd2 {[%emt 0:00:13]} (9. axb4 $5 Bxb4 10. Ne5 $11) 9... O-O {[%emt 0:01:24]} 10. axb4 {[%emt 0:00:44]} Bxb4 {[%emt 0:01:00]} 11. Ba3 {[%emt 0:00:12]} Bxa3 {[%emt 0:03:27]} 12. Rxa3 {[%emt 0:00:05] [#]} Rb8 $146 {[%emt 0:05:22]} ({Predecessor:} 12... e5 13. Qa1 Qc7 14. Rb1 Re8 15. Ng5 Bg4 16. Kf1 a5 17. c5 Bf5 18. Nc4 h6 19. Nf3 Be6 {1-0 Pheephacharakan,P (1781)-Kozhamberdiyev,A (1401) Asian University rapid 2021 (5)}) 13. Qa1 {[%emt 0:03:20]} h6 {[%emt 0:05:11]} 14. Rb1 {[%emt 0:00:14][%mdl 1024] White has compensation.} e5 {[%emt 0:01:51]} 15. Ne1 {[%emt 0:01:37]} Bd7 {[%emt 0:02:22]} 16. Nc2 {[%emt 0:01:21]} Qe7 {[%emt 0:04:10]} 17. Rab3 {[%emt 0:02:20]} b6 {[%emt 0:03:14]} 18. Nb4 {[%emt 0:00:26]} (18. Ra3 $11) 18... Rbc8 $17 {[%emt 0:08:25]} 19. Nxc6 {[%emt 0:02:44]} Bxc6 {[%emt 0:00:36]} 20. Ra3 {[%emt 0:00:02]} Bxg2 {[%emt 0:01:35]} 21. Kxg2 {[%emt 0:00:27]} Rc7 {[%emt 0:00:57]} 22. f3 {[%emt 0:01:33]} Ne8 {[%emt 0:04:37]} 23. Qa2 {[%emt 0:01:35]} Nd6 {[%emt 0:02:43]} 24. Ra1 {[%emt 0:05:50][%cal Ra3a7]} Ra8 {[%emt 0:02:26]} 25. Ra6 {[%emt 0:00:39]} Rb7 {[%emt 0:01:41]} 26. Qa3 {[%emt 0:04:39]} Nf5 {[%emt 0:04:28]} (26... Kh7 $15) 27. Qxe7 $11 {[%emt 0:01:59]} Nxe7 {[%emt 0:01:25]} 28. Ne4 {[%emt 0:00:10]} Nc8 {[%emt 0:01:57]} 29. g4 {[%emt 0:01:36]} Rc7 {[%emt 0:04:09]} 30. Kf2 {[%emt 0:01:11]} Rb8 {[%emt 0:01:44]} 31. h4 {[%emt 0:00:20]} Kf8 {[%emt 0:07:15]} 32. e3 {[%emt 0:01:43]} dxe3+ {[%emt 0:02:53]} 33. Kxe3 {[%emt 0:00:06]} Rbb7 {[%emt 0:03:46]} 34. Nc3 {[%emt 0:01:58]} Nd6 {[%emt 0:05:36]} 35. Rb1 {[%emt 0:02:57]} f6 {[%emt 0:01:55]} 36. h5 {[%emt 0:02:36]} Kf7 {[%emt 0:00:53]} 37. Rba1 {[%emt 0:03:38]} Rd7 {[%emt 0:02:47]} 38. Nd5 {[%emt 0:04:04]} Nc8 {[%emt 0:01:46]} 39. Nc3 {[%emt 0:03:50]} Nd6 {[%emt 0:00:33]} (39... Ne7 $15) 40. R6a2 {[%emt 0:11:50]} Ke6 {[%emt 0:02:53]} 41. f4 {[%emt 0:40:51] [#]} (41. Ra6 $15) 41... Nf7 {[%emt 0:34:57]} (41... exf4+ $1 $17 42. Kxf4 Nf7) 42. f5+ $15 {[%emt 0:01:05]} Ke7 {[%emt 0:00:00]} 43. Nb5 {[%emt 0:00:00][%cal Rb5a7]} a5 {[%emt 0:00:00]} 44. Rb1 {[%emt 0:00:00]} Kd8 {[%emt 0:00:00]} (44... Nd8 $5 {[%cal Rd8c6]} 45. Nc3 Rd4 46. Nd5+ Ke8 $17) 45. Nc3 {[%emt 0:00:00]} Rd4 {[%emt 0:00:00]} (45... Nd6 $15) 46. Rxa5 $11 {[%emt 0:00:00]} Rxg4 {[%emt 0:00:00]} 47. Ra8+ {[%emt 0:00:00]} Kd7 {[%emt 0:00:00] aiming for ...Nd6.} 48. c5 {[%emt 0:00:00] Prevents Nd6.} Rg3+ {[%emt 0:00:00]} 49. Ke2 {[%emt 0:00:00] And now Ne4 would win.} Nd8 $2 {[%emt 0:00:00][%mdl 8192] Black is now going downhill.} (49... Rg2+ $11 50. Ke3 Rg3+ 51. Ke2 Rg2+ 52. Ke3 Rg3+) 50. cxb6 {[%emt 0:00:00]} ({Weaker is} 50. Rxb6 Rxb6 51. cxb6 Nb7 $11) 50... Nc6 $2 {[%emt 0:00:00]} (50... Rg2+ {was necessary.} 51. Kf3 Rc2) 51. Ne4 $18 {[%emt 0:00:00]} Rg2+ {[%emt 0:00:00]} (51... Nd4+ $2 52. Kf2 Rf3+ 53. Kg2 $18) 52. Kf1 {[%emt 0:00:00]} Rc2 {[%emt 0:00:00] Inhibits Nc5+.} 53. Rg8 {[%emt 0:00:00]} Ne7 {[%emt 0:00:00]} 54. Rxg7 {[%emt 0:00:00]} Kc6 {[%emt 0:00:00]} 55. Nxf6 {[%emt 0:00:17] Hoping for Ng4.} Nxf5 {[%emt 0:00:00]} 56. Rg6 {[%emt 0:00:37] Ne4+ is the strong threat.} Kc5 {[%emt 0:00:00]} 57. Ne4+ {[%emt 0:12:19]} Kd4 {[%emt 0:00:00]} 58. Nd6 {[%emt 0:00:09]} Nxd6 {[%emt 0:00:08]} 59. Rxd6+ {[%emt 0:00:31][%mdl 4096] Endgame KRR-KRR} Kc5 $2 {[%emt 0:00:40]} (59... Ke3 60. Re1+ (60. Rxh6 Kxd3 61. Rd6+ Ke4 $18) 60... Kf4 61. Re4+ (61. Rxh6 Rb2 $16) 61... Kf5) 60. Rxh6 {[%emt 0:00:24]} Rh2 {[%emt 0:01:11] White must now prevent ...Rh1+.} 61. Kg1 {[%emt 0:01:21] Repels Rh1+} Rh3 {[%emt 0:00:33]} 62. Rb3 {[%emt 0:00:37][%cal Od3d4] d4+! would be deadly.} Kd5 {[%emt 0:02:50]} (62... Rh4 $142 63. Kg2 Rf4) 63. Kg2 {[%emt 0:00:38]} Rh4 {[%emt 0:01:03]} 64. Rb5+ {[%emt 0:00:12]} Kd4 {[%emt 0:00:33]} 65. Rb4+ {[%emt 0:00:05][%mdl 64] [#] Skewer} Kd5 {[%emt 0:06:10] Weighted Error Value: White=0.15 (very precise) /Black=0.38.  Loses game:     	---       	Black=1      Missed win:     	---       	---        Mistake:       	White=2     	Black=7      Inaccurate:     	White=6     	Black=5      OK:         	White=23    	Black=21     Best:        	White=6     	Black=5      Strong:       	---       	---        Brilliant:      	---       	---} 1-0

[Event "DFMM-LV 2023"]
[Site "Braunfels"]
[Date "2023.06.09"]
[Round "1.21"]
[White "Schneider, Birgit"]
[Black "Buchholz, Maja Patricia"]
[Result "0-1"]
[Annotator "NA RC COMBH"]
[ECO "C02"]
[WhiteElo "1855"]
[BlackElo "1899"]
[PlyCount "132"]
[EventDate "2023.06.09"]
[EventType "team-tourn"]
[EventCountry "GER"]
[SourceTitle "playchess.com"]
[Source "ChessBase"]
[SourceQuality "1"]
[TimeControl "40/5400+30:1800+30"]

1. e4 {[%emt 0:00:04]} e6 {[%emt 0:00:07]} 2. d4 {[%emt 0:00:07]} d5 {[%emt 0:00:06]} 3. e5 {[%emt 0:00:08]} c5 {[%emt 0:00:07]} 4. c3 {[%emt 0:00:06]} Nc6 {[%emt 0:00:07]} 5. Nf3 {[%emt 0:00:27]} Qb6 {[%emt 0:00:20]} 6. a3 {[%emt 0:00:43]} c4 {[%emt 0:00:17]} 7. Nbd2 {[%emt 0:01:34]} Na5 {[%emt 0:00:10]} 8. g3 {[%emt 0:01:57]} Bd7 {[%emt 0:00:09]} 9. h4 {[%emt 0:05:10]} h6 {[%emt 0:00:45]} 10. h5 {[%emt 0:06:21]} Ne7 {[%emt 0:00:33]} 11. Bh3 {[%emt 0:04:52]} Nc8 {[%emt 0:02:09]} 12. O-O {[%emt 0:04:41]} Qc7 {[%emt 0:00:47]} 13. Re1 {[%emt 0:03:52]} Nb6 {[%emt 0:01:00]} 14. Nf1 {[%emt 0:11:31]} O-O-O {[%emt 0:04:55]} 15. Bf4 {[%emt 0:06:19]} Be7 {[%emt 0:06:15]} 16. Rb1 {[%emt 0:06:21]} Rdg8 {[%emt 0:03:20]} 17. g4 {[%emt 0:10:12]} Qd8 {[%emt 0:15:52]} 18. Kh2 {[%emt 0:04:48]} g6 {[%emt 0:02:28]} 19. Ng3 {[%emt 0:04:22]} Ba4 {[%emt 0:23:20]} 20. Qe2 {[%emt 0:02:30]} Qd7 {[%emt 0:02:45]} 21. Qd2 {[%emt 0:03:46]} Nb3 {[%emt 0:01:00]} 22. Qe2 {[%emt 0:00:50]} Kb8 {[%emt 0:01:49]} 23. Nd2 {[%emt 0:01:03]} Na5 {[%emt 0:01:05]} 24. Nf3 {[%emt 0:00:32]} Ka8 {[%emt 0:00:28]} 25. Qd2 {[%emt 0:00:42]} Nb3 {[%emt 0:02:30]} 26. Qe2 {[%emt 0:00:14]} Bd8 {[%emt 0:01:56]} 27. Nd2 {[%emt 0:03:28]} Na5 {[%emt 0:00:35]} 28. Be3 {[%emt 0:01:11]} Bc2 {[%emt 0:10:46]} 29. Ra1 {[%emt 0:02:08]} Bd3 {[%emt 0:00:26]} 30. Qd1 {[%emt 0:00:43]} Qb5 {[%emt 0:02:06]} 31. Qc1 {[%emt 0:02:44]} Na4 {[%emt 0:01:17]} 32. Ra2 {[%emt 0:02:48]} Bh4 {[%emt 0:05:34]} 33. Bf1 {[%emt 0:00:41]} Bxg3+ {[%emt 0:03:15]} 34. fxg3 {[%emt 0:00:20]} Nb3 {[%emt 0:01:17]} 35. Qd1 {[%emt 0:01:18]} Nxd2 {[%emt 0:03:12]} 36. Qxd2 {[%emt 0:00:45]} Qb3 {[%emt 0:00:06]} 37. Raa1 {[%emt 0:01:24]} Nxb2 {[%emt 0:00:37]} 38. Rab1 {[%emt 0:06:04]} Bxb1 {[%emt 0:01:55]} 39. Rxb1 {[%emt 0:00:07]} Qxa3 {[%emt 0:01:37]} 40. Rxb2 {[%emt 0:00:16]} Qf8 {[%emt 0:00:47]} 41. Qf2 {[%emt 0:03:52]} Qe7 {[%emt 0:03:51]} 42. Ra2 {[%emt 0:01:28]} Rc8 {[%emt 0:07:06]} 43. Bc1 {[%emt 0:02:25]} Rc7 {[%emt 0:02:18]} 44. Ba3 {[%emt 0:01:12]} Qg5 {[%emt 0:01:29]} 45. Bc5 {[%emt 0:05:04]} a6 {[%emt 0:01:24]} 46. Be2 {[%emt 0:04:49]} Qc1 {[%emt 0:03:58]} 47. Bb4 {[%emt 0:03:00]} gxh5 {[%emt 0:00:33]} 48. gxh5 {[%emt 0:00:26]} Rg8 {[%emt 0:00:59]} 49. Bd1 {[%emt 0:02:13]} Qxd1 {[%emt 0:00:12]} 50. Bd6 {[%emt 0:00:20]} Qxh5+ {[%emt 0:00:38]} 51. Kg2 {[%emt 0:00:13]} Rcc8 {[%emt 0:01:22]} 52. Be7 {[%emt 0:00:59]} Rg4 {[%emt 0:00:35]} 53. Re2 {[%emt 0:01:27]} Rcg8 {[%emt 0:00:52]} 54. Re3 {[%emt 0:00:15]} Qg6 {[%emt 0:00:27]} 55. Rf3 {[%emt 0:00:30]} h5 {[%emt 0:01:08]} 56. Kh2 {[%emt 0:00:47]} Rg7 {[%emt 0:02:21]} 57. Rf6 {[%emt 0:02:11]} Qh7 {[%emt 0:00:58]} 58. Rf3 {[%emt 0:00:33]} Qg8 {[%emt 0:01:09]} 59. Bf6 {[%emt 0:00:36]} R7g6 {[%emt 0:00:36]} 60. Be7 {[%emt 0:00:41]} Rg7 {[%emt 0:01:12]} 61. Bf6 {[%emt 0:00:26]} Rh7 {[%emt 0:00:33]} 62. Bh4 {[%emt 0:02:38]} Re4 {[%emt 0:01:50]} 63. Rf6 {[%emt 0:01:28]} Qg4 {[%emt 0:00:30]} 64. Rf3 {[%emt 0:00:28]} Re1 {[%emt 0:00:25]} 65. Kg2 {[%emt 0:01:31]} Qe4 {[%emt 0:00:13]} 66. Kh3 {[%emt 0:00:55]} Re2 {[%emt 0:01:04]} 0-1

[Event "DFMM-LV 2023"]
[Site "Braunfels"]
[Date "2023.06.09"]
[Round "1.22"]
[White "Froehlich-Dill, Astrid"]
[Black "Kohm, Vanessa"]
[Result "1/2-1/2"]
[Annotator "NA RC COMBH"]
[ECO "D94"]
[WhiteElo "1762"]
[BlackElo "1769"]
[PlyCount "108"]
[EventDate "2023.06.09"]
[EventType "team-tourn"]
[EventCountry "GER"]
[SourceTitle "playchess.com"]
[Source "ChessBase"]
[SourceQuality "1"]
[TimeControl "40/5400+30:1800+30"]

1. d4 {[%emt 0:00:13]} d5 {[%emt 0:00:12]} 2. Nf3 {[%emt 0:00:29]} Nf6 {[%emt 0:00:18]} 3. c4 {[%emt 0:00:30]} c6 {[%emt 0:00:07]} 4. e3 {[%emt 0:00:57]} g6 {[%emt 0:01:13]} 5. Bd3 {[%emt 0:02:02]} Bg7 {[%emt 0:00:54]} 6. Nc3 {[%emt 0:01:26]} O-O {[%emt 0:00:51]} 7. O-O {[%emt 0:01:10]} Nbd7 {[%emt 0:01:35]} 8. Re1 {[%emt 0:03:28]} Re8 {[%emt 0:04:06]} 9. cxd5 {[%emt 0:11:31]} cxd5 {[%emt 0:01:05]} 10. Qb3 {[%emt 0:01:30]} e5 {[%emt 0:06:37]} 11. Bb5 {[%emt 0:07:01]} e4 {[%emt 0:05:21]} 12. Bxd7 {[%emt 0:07:58]} Nxd7 {[%emt 0:07:38]} 13. Nd2 {[%emt 0:04:28]} Nb6 {[%emt 0:09:21]} 14. a4 {[%emt 0:05:08]} a5 {[%emt 0:01:32]} 15. Ne2 {[%emt 0:09:31]} Bf8 {[%emt 0:03:29]} 16. Qd1 {[%emt 0:09:29]} Bb4 {[%emt 0:04:52]} 17. b3 {[%emt 0:02:10]} Qe7 {[%emt 0:03:36]} 18. Bb2 {[%emt 0:02:14]} Bg4 {[%emt 0:04:47]} 19. h3 {[%emt 0:03:14]} Bd7 {[%emt 0:03:00]} 20. Bc3 {[%emt 0:03:01]} Bd6 {[%emt 0:01:10]} 21. Nf1 {[%emt 0:01:12]} Qg5 {[%emt 0:01:51]} 22. Neg3 {[%emt 0:02:37]} h5 {[%emt 0:04:27]} 23. f4 {[%emt 0:01:50]} exf3 {[%emt 0:03:20]} 24. Qxf3 {[%emt 0:00:08]} h4 {[%emt 0:00:54]} 25. Ne2 {[%emt 0:00:55]} Re6 {[%emt 0:05:13]} 26. Bd2 {[%emt 0:02:43]} Qd8 {[%emt 0:06:37]} 27. Nf4 {[%emt 0:01:12]} Rf6 {[%emt 0:01:24]} 28. Qd1 {[%emt 0:06:12]} Bf5 {[%emt 0:03:38]} 29. Nh2 {[%emt 0:02:18]} Qe8 {[%emt 0:09:46]} 30. Nf3 {[%emt 0:00:44]} Bd7 {[%emt 0:02:45]} 31. Ng5 {[%emt 0:01:14]} Rf5 {[%emt 0:00:59]} 32. Nf3 {[%emt 0:02:21]} Qd8 {[%emt 0:02:14]} 33. Nd3 {[%emt 0:01:35]} Bg3 {[%emt 0:00:58]} 34. Rf1 {[%emt 0:00:04]} Rh5 {[%emt 0:00:38]} 35. Nfe5 {[%emt 0:01:27]} Be6 {[%emt 0:00:14]} 36. Nf4 {[%emt 0:00:34]} Bxf4 {[%emt 0:00:18]} 37. Rxf4 {[%emt 0:00:21]} Nd7 {[%emt 0:00:07]} 38. Nxd7 {[%emt 0:01:15]} Qxd7 {[%emt 0:00:11]} 39. Qf3 {[%emt 0:02:05]} Bf5 {[%emt 0:00:24]} 40. Rc1 {[%emt 0:00:31]} Be4 {[%emt 0:01:00]} 41. Qg4 {[%emt 0:04:29]} Qd8 {[%emt 0:02:30]} 42. Rcf1 {[%emt 0:03:58]} Rg5 {[%emt 0:30:18]} 43. Rxe4 {[%emt 0:02:35]} Rxg4 {[%emt 0:00:00]} 44. Rxg4 {[%emt 0:00:01]} Qe7 {[%emt 0:00:00]} 45. Rc1 {[%emt 0:02:45]} Qa3 {[%emt 0:00:00]} 46. Rc3 {[%emt 0:03:05]} Qa1+ {[%emt 0:00:00]} 47. Kf2 {[%emt 0:01:45]} Ra6 {[%emt 0:00:00]} 48. Rf4 {[%emt 0:02:28]} Qd1 {[%emt 0:00:00]} 49. Be1 {[%emt 0:01:41]} Kg7 {[%emt 0:01:20]} 50. Rc7 {[%emt 0:01:39]} Rf6 {[%emt 0:01:42]} 51. Rxf6 {[%emt 0:00:07]} Kxf6 {[%emt 0:00:04]} 52. Rxb7 {[%emt 0:00:53]} Qc2+ {[%emt 0:00:09]} 53. Kf1 {[%emt 0:03:51]} g5 {[%emt 0:01:32]} 54. Bxa5 {[%emt 0:01:41]} Qc1+ {[%emt 0:00:23]} 1/2-1/2

[Event "DFMM-LV 2023"]
[Site "Braunfels"]
[Date "2023.06.09"]
[Round "1.23"]
[White "Farhadyar, Kiana"]
[Black "von Beckh, Frieda"]
[Result "0-1"]
[Annotator "NA RC COMBH"]
[ECO "B35"]
[WhiteElo "1530"]
[BlackElo "1672"]
[PlyCount "86"]
[EventDate "2023.06.09"]
[EventType "team-tourn"]
[EventCountry "GER"]
[SourceTitle "playchess.com"]
[Source "ChessBase"]
[SourceQuality "1"]
[TimeControl "40/5400+30:1800+30"]

1. e4 {[%emt 0:00:09]} c5 {[%emt 0:00:04]} 2. Nf3 {[%emt 0:00:09]} Nc6 {[%emt 0:00:06]} 3. d4 {[%emt 0:00:18]} cxd4 {[%emt 0:00:06]} 4. Nxd4 {[%emt 0:00:10]} g6 {[%emt 0:00:09]} 5. Nc3 {[%emt 0:01:04]} Bg7 {[%emt 0:00:08]} 6. Be3 {[%emt 0:00:27]} Nf6 {[%emt 0:00:11]} 7. Bc4 {[%emt 0:01:03]} Qa5 {[%emt 0:00:09]} 8. Nxc6 {[%emt 0:14:55]} dxc6 {[%emt 0:02:00]} 9. Qf3 {[%emt 0:20:06]} O-O {[%emt 0:03:38]} 10. O-O {[%emt 0:05:22]} Ng4 {[%emt 0:01:59]} 11. Bd2 {[%emt 0:10:04]} Ne5 {[%emt 0:01:55]} 12. Qe2 {[%emt 0:00:14]} Nxc4 {[%emt 0:00:59]} 13. Qxc4 {[%emt 0:00:13]} Be6 {[%emt 0:01:01]} 14. Qe2 {[%emt 0:06:32]} Qb6 {[%emt 0:01:24]} 15. Rab1 {[%emt 0:11:53]} Rfd8 {[%emt 0:01:33]} 16. a3 {[%emt 0:04:35]} Qc5 {[%emt 0:01:23]} 17. Be3 {[%emt 0:05:29]} Qc4 {[%emt 0:01:42]} 18. Qxc4 {[%emt 0:04:25]} Bxc4 {[%emt 0:00:12]} 19. Rfd1 {[%emt 0:00:57]} b6 {[%emt 0:02:31]} 20. Rxd8+ {[%emt 0:02:21]} Rxd8 {[%emt 0:00:08]} 21. Rd1 {[%emt 0:00:11]} Rxd1+ {[%emt 0:01:00]} 22. Nxd1 {[%emt 0:00:07]} e6 {[%emt 0:00:48]} 23. Bc1 {[%emt 0:01:09]} f5 {[%emt 0:01:12]} 24. Ne3 {[%emt 0:01:46]} Ba6 {[%emt 0:00:24]} 25. exf5 {[%emt 0:01:40]} exf5 {[%emt 0:00:15]} 26. g3 {[%emt 0:01:06]} Kf7 {[%emt 0:00:33]} 27. f4 {[%emt 0:00:17]} Ke6 {[%emt 0:00:34]} 28. Kf2 {[%emt 0:00:27]} h6 {[%emt 0:00:16]} 29. h4 {[%emt 0:00:30]} Bf6 {[%emt 0:00:30]} 30. Ng2 {[%emt 0:00:55]} Kd5 {[%emt 0:00:43]} 31. b3 {[%emt 0:00:52]} Ke4 {[%emt 0:00:49]} 32. Ne1 {[%emt 0:00:33]} Bd4+ {[%emt 0:00:34]} 33. Kg2 {[%emt 0:00:53]} Be2 {[%emt 0:06:59]} 34. Bd2 {[%emt 0:01:53]} Be3 {[%emt 0:01:27]} 35. Bxe3 {[%emt 0:03:08]} Kxe3 {[%emt 0:00:11]} 36. c4 {[%emt 0:00:21]} Bd1 {[%emt 0:01:10]} 37. b4 {[%emt 0:00:20]} Bb3 {[%emt 0:00:57]} 38. Nf3 {[%emt 0:00:55]} Bxc4 {[%emt 0:01:12]} 39. Ne5 {[%emt 0:00:07]} Bd5+ {[%emt 0:00:20]} 40. Kh3 {[%emt 0:00:13]} c5 {[%emt 0:00:54]} 41. bxc5 {[%emt 0:03:18]} bxc5 {[%emt 0:00:09]} 42. Nxg6 {[%emt 0:01:29]} c4 {[%emt 0:00:35]} 43. Ne7 {[%emt 0:00:23]} Be4 {[%emt 0:01:13]} 0-1

[Event "DFMM-LV 2023"]
[Site "Braunfels"]
[Date "2023.06.09"]
[Round "1.25"]
[White "Roessler, Ulrike"]
[Black "Krasnopeyeva, Julia"]
[Result "1-0"]
[Annotator "TA"]
[ECO "B43"]
[WhiteElo "2176"]
[BlackElo "1895"]
[PlyCount "47"]
[EventDate "2023.06.09"]
[EventType "team-tourn"]
[EventCountry "GER"]
[SourceTitle "playchess.com"]
[Source "ChessBase"]
[SourceQuality "1"]
[TimeControl "40/5400+30:1800+30"]

{[%evp 15,47,44,45,10,16,10,7,-14,-1,-13,0,-33,-47,-60,-16,-136,-137,-149,-120,-129,-72,-110,-75,-93,-10,-32,7,5,27,17,783,773,866,857]} 1. e4 {[%emt 0:00:04]} c5 {[%emt 0:00:07]} 2. Nf3 {[%emt 0:00:03]} e6 {[%emt 0:00:08]} 3. d4 {[%emt 0:00:04]} cxd4 {[%emt 0:00:06]} 4. Nxd4 {[%emt 0:00:03]} a6 {[%emt 0:00:10]} 5. Nc3 {[%emt 0:00:04]} b5 {[%emt 0:00:17]} 6. Bd3 {[%emt 0:00:24]} Bb7 {[%emt 0:00:17]} 7. O-O {[%emt 0:00:37]} Nc6 {[%emt 0:01:29]} 8. Nxc6 {[%emt 0:01:06]} Bxc6 {[%emt 0:00:23]} 9. b3 {[%emt 0:02:21] [#] B43: Sicilian: Kan Variation: 5 Nc3.} Qc7 $146 {[%emt 0:05:33]} ({Predecessor:} 9... Qb8 10. Kh1 Ne7 11. f4 Ng6 12. Qh5 Bd6 13. Ne2 Qb7 14. f5 exf5 15. Qxf5 O-O 16. Nd4 Rae8 17. Nxc6 dxc6 {1-0 Shimanov,A (2581)-Vallejo Pons,F (2712) ChessKid Cup Play In blitz 2023 (5)}) 10. Bb2 {[%emt 0:00:44]} Nf6 {[%emt 0:01:15]} 11. Qe2 {[%emt 0:05:52] The position is equal.} Bd6 {[%emt 0:01:26]} 12. Kh1 {[%emt 0:03:05]} h5 {[%emt 0:04:50]} (12... Bxh2 13. g3 Bxg3 14. fxg3 $16) 13. e5 {[%emt 0:03:27]} Bxe5 {[%emt 0:02:18]} 14. Nxb5 $1 {[%emt 0:00:04]} Qb7 {[%emt 0:05:39]} (14... Bxg2+ $5 15. Kxg2 Qc6+ 16. Qf3 (16. Be4 Nxe4 17. Bxe5 axb5 $17) 16... Qxf3+ 17. Kxf3 Bxb2 18. Nc7+ Ke7 $15) 15. Bxe5 {[%emt 0:02:45]} (15. f4 $11 Bxg2+ 16. Qxg2 Qxg2+ 17. Kxg2 Bxb2 18. Nc7+ Ke7 19. Rab1) 15... Bxg2+ $17 {[%emt 0:00:35]} (15... axb5 16. f3 $14) 16. Kg1 {[%emt 0:00:07] [#] Nd6+ would be deadly.} axb5 {[%emt 0:02:50]} 17. Rfe1 {[%emt 0:01:35][%cal Bf1e1,Be1e5,Be5a5][%mdl 32]} Bf3 {[%emt 0:15:25]} ({Better is} 17... b4 {And now ...h4 would win.} 18. c4 h4) 18. Qd2 {[%emt 0:02:03]} b4 {[%emt 0:02:45]} 19. Qf4 {[%emt 0:11:44]} Bc6 {[%emt 0:07:24]} (19... Bh1 $17 {[%csl Gh1][%cal Rb7g2]} 20. Kf1 Rh6) 20. Bd6 $11 {[%emt 0:02:04] A strong pair of Bishops.} Nd5 {[%emt 0:02:27]} 21. Qg5 {[%emt 0:05:25]} Nf6 {[%emt 0:00:31] Dodges Re4} (21... g6 $2 22. Be4 f6 23. Qxg6+ Kd8 24. Qg7 $18) (21... Qb6 $5 {[%cal Rc6b7]}) 22. Re5 {[%emt 0:09:49][%cal Og5h4][%mdl 1024] White has compensation.} (22. Qxg7 $2 Rg8 $19) 22... O-O-O $2 {[%emt 0:01:11][%mdl 8192] [#]} (22... Rg8 $2 23. Bh7 Rh8 24. Qxg7 $18) (22... Qb6 $11 23. Rc5 (23. Qxg7 $2 Rg8 $19) (23. Bc5 Qb8 $11) 23... h4) 23. Ra5 $18 {[%emt 0:01:45]} (23. Qxg7 $2 {perishes.} Rdg8 $19) ({Not} 23. Rc5 h4 24. Ra5 (24. Qxg7 $2 Rdg8 $19) 24... Rh5 25. Qxh5 Nxh5 $18) 23... Nd5 {[%emt 0:03:52]} 24. Ba6 {[%emt 0:00:14] Weighted Error Value: White=0.17 (very precise) /Black=0.39} (24. Qxg7 $2 {too greedy.} Rdg8 25. Bg3 Rxg7 $19) 1-0